[Event "1st Doppelbauer Kiel IM 2022"]
[Site "Kiel"]
[Date "2022.07.05"]
[Round "9.2"]
[White "Kopylov, Daniel"]
[Black "Ermitsch, Magnus"]
[Result "0-1"]
[ECO "B48"]
[WhiteElo "2292"]
[BlackElo "2222"]
[Annotator "TA"]
[PlyCount "182"]
[EventDate "2022.06.30"]
[EventType "tourn"]
[EventCountry "GER"]
[SourceTitle "playchess.com"]
[Source "ChessBase"]
[SourceQuality "1"]
[TimeControl "40/5400+30:1800+30"]

{[%evp 11,182,19,16,18,29,29,31,42,28,22,38,36,33,44,33,20,3,15,1,27,20,12,14,0,0,0,0,0,0,0,0,0,0,-72,0,-64,-64,-68,-61,-132,-138,-137,-158,-152,-148,-147,-138,-134,-83,-144,-135,-240,-192,-314,-329,-354,-366,-373,-368,-371,-356,-337,-324,-310,-312,-571,-556,-464,-159,-158,-158,-258,-261,-261,-261,-261,-261,-261,-254,-254,-253,-732,-728,-518,-508,-29964,-29965,-29965,-29965,-29968,-29969,-29969,-29969,-29969,-29970,-29970,-29972,-29974,-29974,-29974,-29973,-29975,-29976,-29974,-29974,-29969,-29970,-29974,-29975,-29975,-29976,-29974,-29973,-29974,-29975,-29973,-29974,-29972,-29974,-29974,-29975,-29974,-29975,-29978,-29974,-29974,-29975,-29975,-29976,-29976,-29977,-29982,0,-29982,-29983,-29986,-29973,-29974,-29975,-29975,-29973,-29976,-29977,-29977,-29976,-29975,-29973,-29976,-29977,-29977,-29978,-29977,-29979,-29979,-29980,-29980,-29981,-29981,-29981,-29982,-29978,-29983,-29984,-29984,-29985,-29988,-29986,-29986,-29987,-29987,-29988,-29988,-29988]} 1. e4 {[%emt 0:00:03]} c5 {[%emt 0:00:13]} 2. Nf3 {[%emt 0:00:11]} e6 {[%emt 0:00:13]} 3. d4 {[%emt 0:00:43]} cxd4 {[%emt 0:00:10]} 4. Nxd4 {[%emt 0:00:04]} Nc6 {[%emt 0:00:08]} 5. Nc3 {[%emt 0:00:17]} Qc7 {[%emt 0:00:06]} 6. Be3 {[%emt 0:00:05]} a6 {[%emt 0:00:08]} 7. Qf3 {[%emt 0:00:06] B48: Sicilian: Taimanov: 5 Nc3 Qc7 6 Be3 a6 without Be2.} Nf6 {[%emt 0:00:16][%cal Of8a3]} 8. O-O-O {[%emt 0:00:11]} Ne5 {[%emt 0:00:09]} 9. Qg3 {[%emt 0:00:06] White is slightly better.} b5 {[%emt 0:00:05]} 10. f4 {[%emt 0:00:08][%cal Bf2f4,Bf4f5][%mdl 32]} Neg4 {[%emt 0:00:04]} 11. Bg1 {[%emt 0:00:12] Black must now prevent e5.} h5 $1 {[%emt 0:00:04] And now ...b4 would win. 11...h5 is better than 11...b4.} 12. e5 {[%emt 0:00:08] Strongly threatening h3.} b4 $1 {[%emt 0:00:04]} 13. Na4 {[%emt 0:00:11]} ({Much weaker is} 13. exf6 bxc3 14. fxg7 Bxg7 15. Qxc3 Qxc3 16. bxc3 Bb7 $15) (13. Nb1 $5 {[%cal Rh2h3]} Ne4 14. Qe1 $11) 13... Nd5 {[%emt 0:00:15]} 14. h3 {[%emt 0:00:07]} Nh6 {[%emt 0:00:11]} 15. f5 {[%emt 0:00:09]} Bb7 $1 {[%emt 0:00:53]} 16. Bd3 {[%emt 0:00:10]} Be7 $1 {[%emt 0:00:12]} 17. Be4 {[%emt 0:00:40]} ({Of course not} 17. Qxg7 Rg8 18. Qh7 Qxe5 $1 19. fxe6 dxe6 $1 $15) 17... Rc8 {[%emt 0:00:20][%cal Od5c3]} 18. Qf3 {[%emt 0:13:50] Prevents Nc3.} O-O {[%emt 0:00:22]} 19. f6 {[%emt 0:01:43]} gxf6 {[%emt 0:00:23]} 20. exf6 {[%emt 0:00:31]} Bxf6 {[%emt 0:00:17]} 21. Bh2 {[%emt 0:00:21]} d6 {[%emt 0:00:20] [#]} 22. Qg3+ $146 {[%emt 0:38:49]} (22. g4 $11) ({Predecessor:} 22. g4 Bxd4 23. Rxd4 Nf6 24. Qxf6 Bxe4 25. c3 bxc3 26. b3 Bxh1 27. Bxd6 Qd8 28. Qxh6 {½-½ (42) Vavulin,M (2570)-Khanin,S (2472) Loo 2018}) 22... Kh8 {[%emt 0:09:15] The board is on fire.} (22... Bg7 $1 $17 {Threatens to win with ...e5.} 23. Qxd6 Qa5) 23. Qxd6 {[%emt 0:02:51]} (23. Rhf1 $11) 23... Qxd6 $15 {[%emt 0:05:03]} 24. Bxd6 {[%emt 0:00:04]} Rfd8 {[%emt 0:02:07]} 25. Bxd5 {[%emt 0:23:13]} (25. Bc5 $15) 25... Bxd5 $17 {[%emt 0:13:52]} 26. Nb6 {[%emt 0:00:04] [#]} Rxd6 $1 {[%emt 0:02:10]} 27. Nxc8 {[%emt 0:00:03]} Rd8 {[%emt 0:00:35]} 28. Na7 {[%emt 0:02:13]} Bxg2 {[%emt 0:09:26]} 29. Ndc6 {[%emt 0:01:15]} Rg8 {[%emt 0:00:45]} (29... Rxd1+ $142 $1 30. Rxd1 Bxh3) 30. Rhg1 {[%emt 0:03:29]} ({White should try} 30. Nxb4 Bxh1 31. Rxh1) 30... Bxh3 {[%emt 0:08:44] A strong pair of Bishops.} 31. Rh1 {[%emt 0:02:37]} (31. Rxg8+ $17 Kxg8 32. Rh1) 31... Bg4 $1 $19 {[%emt 0:03:45]} 32. Rdf1 {[%emt 0:00:37]} (32. Rd3 $142) 32... Nf5 {[%emt 0:01:01]} 33. Re1 {[%emt 0:04:21]} Bf3 {[%emt 0:11:55]} 34. Rh3 {[%emt 0:03:32]} Rg3 {[%emt 0:00:36]} 35. Rxg3 {[%emt 0:01:49]} Nxg3 {[%emt 0:00:09]} 36. Kd2 {[%emt 0:00:16]} h4 {[%emt 0:02:24]} ({And not} 36... Bxb2 37. Ke3 Bh1 38. Nxb4 $17) 37. Ke3 {[%emt 0:01:03]} Be4 {[%emt 0:00:39]} 38. Kf4 $2 {[%emt 0:01:38] [#]} (38. a3 {was worth a try.}) 38... Bg2 $1 {[%emt 0:01:07]} 39. Ne5 {[%emt 0:01:09]} Nf1 $2 {[%emt 0:01:05]} (39... Bxe5+ $19 {and Black stays clearly on top.} 40. Rxe5 Nf5) 40. Nxf7+ $17 {[%emt 0:00:56]} Kg7 {[%emt 0:04:25]} 41. Ng5 {[%emt 0:16:14]} (41. Ne5 $17) 41... Bxg5+ $19 {[%emt 0:16:45]} 42. Kxg5 {[%emt 0:00:06][%mdl 4096] Endgame KRN-KBN} h3 {[%emt 0:01:28]} 43. Rxe6 {[%emt 0:00:49]} h2 {[%emt 0:01:18]} 44. Rh6 {[%emt 0:02:15]} h1=Q {[%emt 0:01:02]} 45. Rxh1 {[%emt 0:00:02]} Bxh1 {[%emt 0:00:02]} 46. c3 $2 {[%emt 0:06:59]} (46. Nc8) 46... bxc3 {[%emt 0:03:09]} 47. bxc3 {[%emt 0:00:01]} Ne3 {[%emt 0:02:27] ( -> ...Nc4)} 48. Kf4 {[%emt 0:02:17] [#]} (48. Nc8 $19 Kf7 49. Nd6+ Ke6 50. Ne8) 48... Nc4 $1 {[%emt 0:01:33]} 49. a4 {[%emt 0:04:06]} Kf6 {[%emt 0:01:40]} 50. Nc8 {[%emt 0:01:02]} Bb7 {[%emt 0:02:17]} 51. Na7 {[%emt 0:00:16]} Ke6 {[%emt 0:01:22]} 52. Nb5 {[%emt 0:00:28]} axb5 {[%emt 0:00:17]} 53. axb5 {[%emt 0:00:01]} Kd5 {[%emt 0:00:12]} 54. b6 {[%emt 0:00:12]} Kc5 {[%emt 0:00:27]} 55. Kf5 {[%emt 0:00:07]} Bd5 {[%emt 0:00:08]} 56. b7 {[%emt 0:00:10]} Bxb7 {[%emt 0:00:05]} 57. Kf6 {[%emt 0:00:04]} Bd5 {[%emt 0:00:11]} 58. Ke7 {[%emt 0:00:05]} Ne3 {[%emt 0:00:24]} 59. c4 {[%emt 0:00:06]} Nxc4 {[%emt 0:00:18]} 60. Kf6 {[%emt 0:00:06]} Kd6 {[%emt 0:01:11]} 61. Kf5 {[%emt 0:00:05]} Nd2 {[%emt 0:00:58]} 62. Kf4 {[%emt 0:00:07]} Ke6 {[%emt 0:00:08]} 63. Ke3 {[%emt 0:00:07]} Ne4 {[%emt 0:00:28]} 64. Kd4 {[%emt 0:00:10]} Bc6 {[%emt 0:00:08]} 65. Kc4 {[%emt 0:00:13]} Ke5 {[%emt 0:00:11]} 66. Kd3 {[%emt 0:00:07]} Bb5+ {[%emt 0:00:39]} 67. Ke3 {[%emt 0:00:06]} Ng5 {[%emt 0:00:08]} 68. Kd2 {[%emt 0:00:06]} Kd4 {[%emt 0:00:07]} 69. Kc2 {[%emt 0:00:06]} Bc4 {[%emt 0:00:06]} 70. Kb2 {[%emt 0:00:08]} Kd3 {[%emt 0:00:38]} 71. Ka3 {[%emt 0:00:12]} Kd4 $2 {[%emt 0:00:27]} (71... Kc3 {mates} 72. Ka4 Nf7 73. Ka3 Nd6 74. Ka4 Nf7 75. Ka3 Be6 76. Ka4 Nd6 77. Ka5 Kc4 78. Ka4 Nb5 79. Ka5 Kc5 80. Ka4 Bf7 81. Ka5 Bg6 82. Ka4 Bc2+ 83. Ka5 Nd6 84. Ka6 Bg6 85. Ka5 Be8 86. Ka6 Bb5+ 87. Ka7 Kc6 88. Kb8 Kb6 89. Ka8 Kc7 90. Ka7 Nc8+ 91. Ka8 Bc6#) 72. Ka4 $2 {[%emt 0:00:20][%mdl 8192]} (72. Kb2 $11 Kd3 73. Kc1) 72... Ne4 {[%emt 0:00:29] Black mates.} 73. Ka5 {[%emt 0:00:12]} Kc5 {[%emt 0:00:18][%cal Bd4c5,Bc5b5,Bb5b4,Bb4c3][%mdl 32]} 74. Ka4 {[%emt 0:00:05]} Nd2 {[%emt 0:00:47]} 75. Ka3 {[%emt 0:00:06]} Kb5 {[%emt 0:00:10]} 76. Kb2 {[%emt 0:00:05]} Kb4 {[%emt 0:00:06]} 77. Kc2 {[%emt 0:00:05]} Ne4 {[%emt 0:00:07]} 78. Kb2 {[%emt 0:00:12]} Bb3 {[%emt 0:00:33]} 79. Ka1 {[%emt 0:00:07]} Kc3 {[%emt 0:03:08]} 80. Kb1 {[%emt 0:00:04]} Nd2+ {[%emt 0:00:29][%cal Be4d2,Bd2c4,Bc4e3,Be3c2,Bc2d4,Bd4e2][%mdl 32]} 81. Ka1 {[%emt 0:00:04]} Nc4 {[%emt 0:00:11]} 82. Kb1 {[%emt 0:00:04]} Ne3 {[%emt 0:00:31]} 83. Kc1 {[%emt 0:00:16]} Nc2 {[%emt 0:02:43]} 84. Kb1 {[%emt 0:00:06]} Bc4 {[%emt 0:00:10]} 85. Kc1 {[%emt 0:00:02]} Ba2 {[%emt 0:00:17]} 86. Kd1 {[%emt 0:00:01]} Nd4 {[%emt 0:00:24]} 87. Ke1 {[%emt 0:00:03]} Kd3 {[%emt 0:00:10]} 88. Kf1 {[%emt 0:00:07]} Ne2 {[%emt 0:00:37]} 89. Kg2 {[%emt 0:00:06]} Be6 {[%emt 0:01:09][%cal Ba2e6,Be6f5,Bf5e4][%mdl 32]} 90. Kf3 {[%emt 0:00:05]} Bf5 {[%emt 0:00:34]} 91. Kf2 {[%emt 0:00:06]} Be4 {[%emt 0:01:17] Weighted Error Value: White=0.42/Black=0.09 (flawless)} 0-1

[Event "1st Doppelbauer Kiel IM 2022"]
[Site "Kiel"]
[Date "2022.07.05"]
[Round "9.3"]
[White "Barseghyan, Armen Ar."]
[Black "Junge, Ralph"]
[Result "1/2-1/2"]
[ECO "A85"]
[WhiteElo "2378"]
[BlackElo "2224"]
[Annotator "TA"]
[PlyCount "40"]
[EventDate "2022.06.30"]
[EventType "tourn"]
[EventCountry "GER"]
[SourceTitle "playchess.com"]
[Source "ChessBase"]
[SourceQuality "1"]
[TimeControl "40/5400+30:1800+30"]

{[%evp 9,40,40,49,47,53,43,52,59,48,33,63,63,70,66,68,79,77,83,81,64,104,107,106,114,113,112,104,0,0,0,0,-32,-24]} 1. d4 {[%emt 0:00:04]} e6 {[%emt 0:04:52]} 2. c4 {[%emt 0:00:26]} f5 {[%emt 0:00:33]} 3. Nf3 {[%emt 0:00:23]} Nf6 {[%emt 0:01:16]} 4. g3 {[%emt 0:00:09]} d5 {[%emt 0:02:47]} 5. Nc3 {[%emt 0:00:21]} Be7 {[%emt 0:00:55]} 6. Bf4 {[%emt 0:00:29] A85: Dutch Defence: 2 c4 Nf6 3 Nc3.} c6 {[%emt 0:01:15]} 7. e3 {[%emt 0:00:07]} Ne4 {[%emt 0:00:58]} 8. h4 {[%emt 0:00:09] White is slightly better.} O-O {[%emt 0:01:57]} 9. Bd3 {[%emt 0:00:08] [#]} Nxc3 $146 {[%emt 0:19:03]} ({Predecessor:} 9... Nd7 10. Qc2 Ndf6 11. Ne5 Nd7 12. Nf3 Ndf6 13. O-O Ng4 14. Rab1 a5 15. Ne5 Nxe5 16. Bxe5 {½-½ (72) Barseghyan,A (2358)-Stupak,K (2501) Orsha 2021}) 10. bxc3 {[%emt 0:00:10]} b6 {[%emt 0:03:35]} 11. O-O {[%emt 0:03:52]} Ba6 {[%emt 0:02:28]} 12. cxd5 {[%emt 0:00:17] [#] Black must now prevent Bxa6.} cxd5 {[%emt 0:00:26]} 13. Bxa6 {[%emt 0:06:09]} Nxa6 {[%emt 0:02:06]} 14. Qa4 {[%emt 0:00:08]} Nc7 {[%emt 0:04:01]} 15. Qc6 $36 {[%emt 0:00:27][%mdl 2048] Keeping Black busy.} Rc8 {[%emt 0:00:26]} 16. Bxc7 {[%emt 0:01:26] 0x0.00086286da8edp-1022s more active pieces.} Rxc7 {[%emt 0:01:41]} 17. Qxe6+ {[%emt 0:00:31]} Kh8 {[%emt 0:00:05]} 18. Rfc1 {[%emt 0:15:48]} (18. Rfb1 $16) 18... Rf6 {[%emt 0:04:20]} 19. Qe5 {[%emt 0:02:01]} Ba3 {[%emt 0:00:27]} 20. Qf4 {[%emt 0:07:21]} Bxc1 {[%emt 0:47:19] Weighted Error Value: White=0.12 (very precise) /Black=0.06 (flawless)} 1/2-1/2

[Event "1st Doppelbauer Kiel IM 2022"]
[Site "Kiel"]
[Date "2022.07.05"]
[Round "9.4"]
[White "Arndt, Magnus"]
[Black "Zavgorodniy, Sergiy"]
[Result "1/2-1/2"]
[ECO "C41"]
[WhiteElo "2343"]
[BlackElo "2423"]
[Annotator "TA"]
[PlyCount "42"]
[EventDate "2022.06.30"]
[EventType "tourn"]
[EventCountry "GER"]
[SourceTitle "playchess.com"]
[Source "ChessBase"]
[SourceQuality "1"]
[TimeControl "40/5400+30:1800+30"]

{[%evp 12,42,34,31,33,38,33,23,35,22,27,6,20,9,50,47,45,54,52,55,50,37,53,36,47,46,43,41,47,46,54,19,19]} 1. e4 {[%emt 0:00:05]} e5 {[%emt 0:00:06]} 2. Nf3 {[%emt 0:00:03]} d6 {[%emt 0:00:06]} 3. d4 {[%emt 0:00:05]} exd4 {[%emt 0:00:05]} 4. Nxd4 {[%emt 0:00:03]} Nf6 {[%emt 0:00:08]} 5. Nc3 {[%emt 0:00:04]} Be7 {[%emt 0:00:12]} 6. Be2 {[%emt 0:00:10]} O-O {[%emt 0:00:08]} 7. O-O {[%emt 0:00:06]} c6 {[%emt 0:01:00] C41: Philidor Defence.} 8. a4 {[%emt 0:01:35]} a5 {[%emt 0:00:27]} 9. Re1 {[%emt 0:01:02]} Na6 {[%emt 0:00:16] [#] White has an edge.} 10. h3 $146 {[%emt 0:01:07]} ({Predecessor:} 10. Bf3 Re8 11. Bf4 Nb4 12. h3 Qb6 13. Qd2 Bf8 14. Rad1 Nd7 15. Be3 Qc7 16. Bf4 {½-½ (25) Malbran,G (2306)-Perelman,H (2185) Buenos Aires 2006}) 10... Nb4 {[%emt 0:00:47]} 11. Bf1 {[%emt 0:02:45]} Re8 {[%emt 0:00:36]} 12. Bg5 {[%emt 0:01:47]} g6 {[%emt 0:01:05]} 13. Qd2 {[%emt 0:02:41]} Nd7 {[%emt 0:01:32]} 14. Bxe7 {[%emt 0:01:17]} (14. Bh6 {feels hotter.} Nc5 15. Bc4 Bf6 16. Rad1) 14... Qxe7 {[%emt 0:00:06]} 15. Rad1 {[%emt 0:02:38]} Nc5 {[%emt 0:00:48]} 16. Bc4 {[%emt 0:06:43]} Bd7 {[%emt 0:01:26]} 17. Nb3 {[%emt 0:03:21] [#] Black must now prevent Nxc5.} Be6 {[%emt 0:03:26]} 18. Bxe6 {[%emt 0:01:28]} Qxe6 {[%emt 0:03:20]} 19. Nxc5 {[%emt 0:02:29]} dxc5 {[%emt 0:00:03]} 20. Re2 {[%emt 0:01:38]} Qe7 {[%emt 0:04:58]} 21. Qe1 {[%emt 0:08:48]} Rad8 {[%emt 1:20:25] Weighted Error Value: White=0.06 (flawless) /Black=0.07 (flawless)} 1/2-1/2

[Event "1st Doppelbauer Kiel IM 2022"]
[Site "Kiel"]
[Date "2022.07.05"]
[Round "9.5"]
[White "Fromm, Marius"]
[Black "Lanka, Zigurds"]
[Result "0-1"]
[ECO "B42"]
[WhiteElo "2317"]
[BlackElo "2397"]
[Annotator "TA"]
[PlyCount "124"]
[EventDate "2022.06.30"]
[EventType "tourn"]
[EventCountry "GER"]
[SourceTitle "playchess.com"]
[Source "ChessBase"]
[SourceQuality "1"]
[TimeControl "40/5400+30:1800+30"]

{[%evp 16,124,33,29,43,36,41,22,41,21,40,35,45,56,75,41,40,39,41,52,61,20,22,29,31,0,0,0,50,-4,0,-8,-8,-8,-8,-8,0,-51,-51,-123,-123,-105,-110,-103,-118,-100,-103,-101,-105,-224,-196,-195,-166,-162,-109,-109,-116,-140,-140,-143,-143,-217,-197,-235,-238,-238,-219,-291,-283,-284,-281,-268,-194,-187,-179,-253,-244,-272,-271,-260,-263,-292,-282,-341,-339,-343,-340,-333,-329,-379,-359,-370,-420,-385,-377,-461,-453,-432,-401,-456,-414,-755,-402,-666,-620,-29952,-29955,-29981,-29982,-29978,-29977]} 1. e4 {[%emt 0:00:03]} c5 {[%emt 0:07:33]} 2. Nf3 {[%emt 0:00:14]} e6 {[%emt 0:00:26]} 3. d4 {[%emt 0:00:55]} cxd4 {[%emt 0:00:09]} 4. Nxd4 {[%emt 0:00:05]} a6 {[%emt 0:00:14]} 5. Bd3 {[%emt 0:01:29]} Bc5 {[%emt 0:00:23]} 6. Nb3 {[%emt 0:00:06]} Ba7 {[%emt 0:00:11]} 7. O-O {[%emt 0:00:53]} d6 {[%emt 0:01:10]} 8. Qe2 {[%emt 0:11:14] was the old line (8.Qg4).} Nc6 {[%emt 0:00:34]} 9. Be3 {[%emt 0:00:22]} e5 {[%emt 0:00:22] B42: Sicilian: Kan Variation: 5 Bd3.} 10. Bxa7 {[%emt 0:02:43]} Rxa7 {[%emt 0:00:17]} 11. c4 {[%emt 0:03:41]} Nf6 {[%emt 0:00:44] The position is equal.} 12. Nc3 {[%emt 0:00:11] [#]} b6 $146 {[%emt 0:01:42]} ({Predecessor:} 12... Be6 13. Qe3 O-O 14. Rfd1 Qb8 15. Rac1 b6 16. h3 Nd7 17. Na1 Nc5 18. Nc2 a5 {1-0 (44) Saric,I (2687)-Nagy,G (2507) Germany 2022}) 13. Rfd1 {[%emt 0:07:22]} Nd7 {[%emt 0:01:18][%cal Bf6d7,Bd7f8,Bf8e6][%mdl 32]} 14. Bc2 {[%emt 0:08:23]} Nf8 {[%emt 0:04:47]} 15. Rd2 {[%emt 0:14:47]} (15. Qd2 $5 {[%cal Rd2d6]}) 15... Ne6 {[%emt 0:01:05]} 16. Rad1 {[%emt 0:00:26]} Rd7 {[%emt 0:00:31]} 17. Qe3 {[%emt 0:01:12]} O-O {[%emt 0:05:47]} 18. Nd5 {[%emt 0:08:10]} Ncd4 {[%emt 0:01:07]} 19. Nxd4 {[%emt 0:00:04]} Nxd4 {[%emt 0:00:41]} 20. Rxd4 {[%emt 0:00:27]} exd4 {[%emt 0:00:15]} 21. Qxd4 {[%emt 0:00:02]} Rb7 {[%emt 0:05:25]} (21... b5 $11) 22. Rd3 {[%emt 0:02:03]} (22. Ne3 $14) 22... f5 {[%emt 0:04:34]} 23. Rb3 {[%emt 0:09:35][%cal Rd5b6]} b5 {[%emt 0:08:24]} 24. cxb5 {[%emt 0:07:27]} Rxb5 {[%emt 0:00:36]} 25. Rg3 {[%emt 0:00:13][%csl Gg3][%cal Rd4g7]} Rb7 {[%emt 0:01:29]} 26. Bb3 {[%emt 0:05:19]} ({White should play} 26. exf5 $11 Bxf5 27. Bb3) 26... Kh8 $15 {[%emt 0:04:03]} 27. Nf4 {[%emt 0:02:55]} (27. exf5 $15 Bxf5 28. Re3) 27... fxe4 $17 {[%emt 0:02:06]} 28. Qxe4 {[%emt 0:00:03]} Qe7 {[%emt 0:06:51]} (28... Qb6 $2 {leads to mate.} 29. Ng6+ $1 {[%mdl 512]} hxg6 30. Qh4#) 29. Re3 {[%emt 0:03:35]} Qxe4 {[%emt 0:01:00] Dancing on a razor blade.} (29... Qh4 $2 {gets mated.} 30. Ng6+ $1 {[%mdl 512]} hxg6 31. Qxh4#) 30. Rxe4 {[%emt 0:00:01][%cal Of4g6] Intending Ng6+! and mate.} Bf5 {[%emt 0:00:27] Prevents Ng6+.} 31. Rd4 {[%emt 0:00:05]} Re7 {[%emt 0:03:06][%cal Re7e1]} 32. Rd1 {[%emt 0:05:25] Against Re1+} (32. f3 $17) 32... Bg4 $19 {[%emt 0:01:51]} 33. f3 {[%emt 0:00:03]} Rxf4 {[%emt 0:00:31]} 34. fxg4 {[%emt 0:00:03][%mdl 4096] Endgame KRR-KRB} h6 {[%emt 0:06:23]} ({Not} 34... Rxg4 35. Rxd6 g6 36. h3 $17) ({Better is} 34... Re2 $19 35. g3 Rf8 36. Rxd6 h6) 35. h3 $17 {[%emt 0:00:17]} Rf6 {[%emt 0:01:35]} 36. Rd2 {[%emt 0:00:29] Against Re2} g5 {[%emt 0:03:05]} 37. Rc2 {[%emt 0:00:56]} Kg7 {[%emt 0:00:36]} 38. Rc8 {[%emt 0:01:38] [#]} (38. Bd5 $17) 38... Re1+ $1 $19 {[%emt 0:07:56]} 39. Kh2 {[%emt 0:00:04]} Re2 {[%emt 0:00:15]} 40. Rc7+ {[%emt 0:04:21]} Kf8 {[%emt 0:00:57]} 41. Rc8+ {[%emt 0:15:15]} Ke7 {[%emt 0:01:09]} 42. Rc7+ {[%emt 0:00:04]} Kd8 {[%emt 0:00:30]} 43. Rc6 {[%emt 0:00:04]} a5 {[%emt 0:01:03]} 44. Ra6 {[%emt 0:00:32]} Re5 {[%emt 0:00:39] Against Bd5} 45. Bc4 {[%emt 0:02:31]} (45. Bd1 {was worth a try.}) 45... Kc7 {[%emt 0:01:06]} 46. b3 {[%emt 0:00:37]} Rf2 {[%emt 0:03:56]} 47. a4 {[%emt 0:02:48]} Rd2 {[%emt 0:01:24]} 48. Ra7+ {[%emt 0:00:23]} Kb6 {[%emt 0:01:05]} 49. Rh7 {[%emt 0:00:32]} Kc5 {[%emt 0:01:02]} 50. Rxh6 {[%emt 0:00:05]} d5 {[%emt 0:01:18]} 51. Bb5 {[%emt 0:00:01]} Rb2 {[%emt 0:01:44]} 52. h4 {[%emt 0:03:00]} gxh4 {[%emt 0:00:29]} 53. Kh3 {[%emt 0:04:30]} Re3+ {[%emt 0:02:37]} 54. Kxh4 {[%emt 0:00:05]} Rxg2 {[%emt 0:00:09] aiming for ...Rh2+.} 55. Ra6 {[%emt 0:06:44]} Kb4 {[%emt 0:05:38] Threatens to win with ...d4.} 56. Rd6 {[%emt 0:00:05]} Re5 {[%emt 0:01:07]} 57. Rb6 {[%emt 0:02:05]} Kc3 {[%emt 0:04:04] ...d4 is the strong threat.} 58. Bc6 {[%emt 0:00:29]} (58. Rc6+ $142 Kxb3 59. Rd6) 58... Rh2+ {[%emt 0:07:40]} 59. Kg3 {[%emt 0:00:02]} Rh6 {[%emt 0:00:16]} 60. Ra6 {[%emt 0:00:51]} d4 {[%emt 0:02:19] Black mates.} 61. Kf4 {[%emt 0:00:04]} Ree6 {[%emt 0:00:59]} 62. g5 {[%emt 0:00:25]} Rxc6 {[%emt 0:00:39] Weighted Error Value: White=0.41/Black=0.06 (flawless)} 0-1